Cogmind - Beta 14 @@@ ROGUE MODE // 2024.11.27 @ 14:15:03 Player: akira Result: Destroyed by as-06556 with Assembled Blade Performance ------------- Evolutions (0) 0 Regions Visited (2) 400 Robots Destroyed (21) 105 Value Destroyed (475) 475 Prototype IDs (0) 0 Alien Tech Used (0) 0 Bonus (0) 0 TOTAL SCORE: 980 Bonus ------- None Cogmind --------- Core Integrity 0/250 Matter 300/300 Energy 100/100 System Corruption 0% Temperature Cool (60) Movement Rolling (95) Ox1 Location -10/Mines Parts ------- > --- POWER (1) -------- (None) > --- PROPULSION (2) --- Wheel > --- UTILITY (2) ------ Small Storage Unit Medium Storage Unit > --- WEAPON (2) ------- EM Pulse Gun > --- INVENTORY (10) --- Flexi-carbon Leg Terrain Scanner Hacking Suite Peak State ------------ > --- POWER ------------ Light Ion Engine > --- PROPULSION ------- Aluminum Leg Aluminum Leg > --- UTILITY ---------- Medium Storage Unit Seismic Detector > --- WEAPON ----------- EM Pulse Gun Light Assault Rifle > --- INVENTORY -------- Ion Engine Light Ion Engine Light Treads Wheel Wheel Small Storage Unit Terrain Scanner Medium Laser Medium Laser Assault Rifle [Rating: 8] Favorites ----------- Power Light Ion Engine Engine Light Ion Engine Propulsion Aluminum Leg Treads Light Treads Leg Aluminum Leg Wheel Wheel Utility Seismic Detector Device Seismic Detector Storage Medium Storage Unit Weapon Medium Laser Energy Gun Medium Laser Ballistic Gun Light Assault Rifle Build | -11 -10 -10 ------- Run | Yrd Mat Min Slots Evolved . | . . . Power . | . . . Propulsion . | . . . Utility . | . . . Weapon . | . . . Parts Attached 28 | 7 15 6 Power 4 | 1 2 1 Engine 4 | 1 2 1 Core . | . . . Reactor . | . . . Propulsion 9 | 2 5 2 Treads 2 | 2 . . Leg 5 | . 5 . Wheel 2 | . . 2 Hover . | . . . Flight . | . . . Utility 5 | 1 3 1 Device 2 | . 2 . Storage 3 | 1 1 1 Processor . | . . . Hackware . | . . . Protection . | . . . Artifact . | . . . Weapon 10 | 3 5 2 Energy Gun 6 | 2 2 2 Energy Cannon . | . . . Ballistic Gun 4 | 1 3 . Ballistic Cannon . | . . . Launcher . | . . . Special Weapon . | . . . Impact Weapon . | . . . Slashing Weapon . | . . . Piercing Weapon . | . . . Special Melee Weapon . | . . . Unidentified Prototypes . | . . . Parts Lost 10 | . 1 9 Power 2 | . . 2 Propulsion 4 | . 1 3 Utility 1 | . . 1 Weapon 3 | . . 3 Highest Loss Streak 6 | . 1 6 To Critical Strikes . | . . . Average Slot Usage (%) 98 | . 98 96 Engine 13 | . 13 12 Treads 10 | . 11 . Leg 15 | . 16 6 Wheel 2 | . . 20 Device 12 | . 13 3 Storage 15 | . 14 23 Energy Gun 14 | . 13 24 Ballistic Gun 12 | . 13 3 Peak Build Rating 8 | 6 8 8 Average Rating 6 | 4 6 7 On Entrance 4 | . 6 8 Naked Turns . | . . . Heaviest Build 22 | 14 20 22 Greatest Support 40 | 40 40 20 Greatest Overweight (x) 3 | . 3 1 Average Overweight (x) . | . . . Largest Inventory Capacity 10 | 8 10 10 Average Capacity 9 | 7 9 10 Most Carried 10 | 7 10 8 Average Carried 6 | 4 7 4 Final Capacity 10 | 8 10 10 Final Carried 8 | 7 8 3 Class Distribution -------------------- 100% | Mutant Dominant Class ---------------- Mutant | -10/Materials Mutant | -10/Mines Resources | -11 -10 -10 ----------- Run | Yrd Mat Min Matter Collected 636 | 274 317 45 Remotely . | . . . Salvage Created 762 | 83 580 99 Parts 31 | 6 25 . Haulers Intercepted 1 | . 1 . Recyclers Shooed 1 | . 1 . Parts Field Recycled . | . . . Retrieved Matter . | . . . Parts Self-Destructed . | . . . Prevented . | . . . Kills | -11 -10 -10 ------- Run | Yrd Mat Min Combat Hostiles Destroyed 20 | . 13 7 Guns 20 | . 13 7 Classes Destroyed 8 | 2 5 1 Worker 2 | 1 1 . Tunneler 2 | 2 . . Hauler 1 | . 1 . Operator 1 | . 1 . Watcher 2 | . 2 . Swarmer 3 | . 3 . Grunt 10 | . 10 . Assembled 7 | . . 7 Best Kill Streak 6 | 3 3 6 Combat Bots Only 6 | . 3 6 Max Kills in Single Turn 1 | 1 1 1 Gunslinging . | . . . Exploded . | . . . Melee . | . . . Uniques/NPCs Destroyed . | . . . Combat | -11 -10 -10 -------- Run | Yrd Mat Min Hostile Shots Fired 132 | . 70 62 Missed 24 | . 10 14 Damage Taken 1391 | . 664 727 Core 264 | . 152 112 Absorbed by Shields . | . . . Core Remaining (%) 100 | 100 . . Volleys Fired 116 | 10 82 24 Largest 2 | 2 2 2 Hottest 100 | 70 70 100 Shots Fired 231 | 20 163 48 Gun 231 | 20 163 48 Cannon . | . . . Launcher . | . . . Special . | . . . Kinetic 101 | 10 82 9 Thermal 106 | 5 69 32 Explosive . | . . . Electromagnetic 24 | 5 12 7 Robot Hit Streak 12 | 4 12 8 Robot Miss Streak 5 | 2 5 2 Penetration Max . | . . . Secondary Targets 3 | . 1 2 Max Gunslinging Chain 1 | . 1 1 Shots Hit Robots 145 | 13 100 32 Core Hits 59 | 4 37 18 Critical Kills 2 | . 2 . Critical Parts Destroyed . | . . . Critical Strikes 11 | . 8 3 Burn 9 | . 6 3 Destroy 2 | . 2 . Melee Attacks . | . . . Impact . | . . . Slashing . | . . . Piercing . | . . . Sneak Attacks . | . . . Combat Hostiles . | . . . Follow-up Attacks . | . . . Damage Inflicted 1703 | 174 1164 365 Guns 1703 | 174 1164 365 Cannons . | . . . Explosions . | . . . Melee . | . . . Ramming . | . . . Kinetic 665 | 100 502 63 Thermal 840 | 50 553 237 Explosive . | . . . Electromagnetic 198 | 24 109 65 Impact . | . . . Slashing . | . . . Piercing . | . . . Highest Corruption . | . . . Average Corruption . | . . . Corruption Purged . | . . . Corruption Blocked . | . . . Overload Shots . | . . . Overflow Damage . | . . . Projectiles . | . . . Explosions . | . . . Melee . | . . . Knockbacks . | . . . Impact . | . . . Kinetic . | . . . Secondary . | . . . Self-Inflicted Damage . | . . . Shots . | . . . Rammed . | . . . Targets Rammed . | . . . Kicked . | . . . Crushed . | . . . Highest Temperature 312 | 27 291 312 Average Temperature 78 | 12 70 112 Received Heat Transfer 415 | . 375 40 Effects 3 | . 3 . Interference 3 | . 3 . Siege Activations . | . . . Robots Corrupted . | . . . Combat Hostiles . | . . . Parts Fried 1 | . 1 . Impact Corruptions . | . . . Robots Melted . | . . . Combat Hostiles . | . . . Parts Melted 8 | 1 7 . Heat Transferred 3145 | 148 2072 925 Parts Sabotaged . | . . . Parts Stolen . | . . . Parts Stripped . | . . . Power Chain Reactions . | . . . Alert | -11 -10 -10 ------- Run | Yrd Mat Min Peak Influence 215 | 15 215 15 Initial 9 | . 9 1 Average 58 | 3 70 1 Maximum Alert Level 1 | . 1 . Low Security (%) 99 | 100 99 100 Level 1 . | . . . Level 2 . | . . . Level 3 . | . . . Level 4 . | . . . Level 5 . | . . . High Security . | . . . Max Security . | . . . Squads Dispatched 2 | . 2 . Investigation 1 | . 1 . Extermination . | . . . Reinforcement 1 | . 1 . Assault . | . . . Garrison . | . . . Intercept . | . . . Searches Triggered . | . . . Construction Impeded . | . . . Haulers Reinforced . | . . . Active Scanning Responses . | . . . Cargo Convoy Interrupts . | . . . Stealth | -11 -10 -10 --------- Run | Yrd Mat Min Distress Signals 3 | . 3 . Communications Jammed . | . . . Distress Signals . | . . . Times Spotted 47 | . 34 13 Peak Tracking Total 7 | . 5 7 Tactical Retreats 3 | . 1 2 Traps | -11 -10 -10 ------- Run | Yrd Mat Min Traps Triggered 4 | . 4 . Indirectly . | . . . Trap Hack Attempts . | . . . Triggered . | . . . Disarmed . | . . . Reprogrammed . | . . . Reused . | . . . Traps Extracted . | . . . Installed . | . . . Triggered . | . . . Machines | -11 -10 -10 ---------- Run | Yrd Mat Min Machines Disabled . | . . . Max in Single Turn . | . . . Machines Repaired . | . . . Machines Dismantled . | . . . Machines Sabotaged . | . . . Overloaded Fab Kills . | . . . Hacking | -11 -10 -10 --------- Run | Yrd Mat Min Machines Accessed 6 | . 6 . Terminals 6 | . 6 . Fabricators . | . . . Repair Stations . | . . . Recycling Units . | . . . Scanalyzers . | . . . Garrison Access . | . . . Total Hacks 8 | . 8 . Successful 3 | . 3 . Failed 5 | . 5 . Catastrophic 1 | . 1 . Database Lockouts . | . . . Manual 8 | . 8 . Terminals 8 | . 8 . Fabricators . | . . . Repair Stations . | . . . Recycling Units . | . . . Scanalyzers . | . . . Garrison Access . | . . . Terminal Hacks . | . . . Fabricator Hacks . | . . . Repair Station Hacks . | . . . Recycling Unit Hacks . | . . . Scanalyzer . | . . . Garrison Access Hacks . | . . . Unauthorized Hacks 3 | . 3 . Terminals 3 | . 3 . Botnet 3 | . 3 . Fabricators . | . . . Repair Stations . | . . . Recycling Units . | . . . Scanalyzers . | . . . Garrison Access . | . . . Data Cores Recovered . | . . . Used . | . . . Hacking Detections 3 | . 3 . Full Trace Events . | . . . Feedback Events . | . . . Feedback Blocked . | . . . Robot Schematics Acquired . | . . . Robots Built . | . . . Authchips . | . . . Time . | . . . Total Robot Build Rating . | . . . Part Schematics Acquired . | . . . Parts Built . | . . . Authchips . | . . . Time . | . . . Total Part Build Rating . | . . . Parts Repaired . | . . . Time . | . . . Parts Recycled . | . . . Recycled Matter . | . . . Retrieved Matter . | . . . Retrieved Components . | . . . Parts Scanalyzed . | . . . Part Schematics Acquired . | . . . Parts Damaged . | . . . Bothacking | -11 -10 -10 ------------ Run | Yrd Mat Min Used RIF Installer . | . . . Robots Hacked . | . . . Non-combat . | . . . Combat . | . . . Robot Hacks Applied . | . . . Relay Couplers Released . | . . . Fabnet Peak Effective % . | . . . Robots Rewired . | . . . Allies Hacked . | . . . Hacks Repelled . | . . . Allies | -11 -10 -10 -------- Run | Yrd Mat Min Total Allies . | . . . Largest Group . | . . . Highest-Rated Group . | . . . Highest-Rated Ally . | . . . Total Orders . | . . . Ally Attacks . | . . . Total Damage . | . . . Kills . | . . . Allies Corrupted . | . . . Allies Melted . | . . . Intel | -11 -10 -10 ------- Run | Yrd Mat Min Robot Analysis Total . | . . . Derelict Logs Recovered . | . . . Drone Launches . | . . . Drone Recoveries . | . . . Exploration | -11 -10 -10 ------------- Run | Yrd Mat Min Turns Passed 2163 | 151 1791 221 Spaces Moved 1143 | 66 1019 58 Core 7 | 3 4 . Treads 356 | 63 293 . Legs 748 | . 722 26 Wheels 32 | . . 32 Hover . | . . . Flight . | . . . Fastest Speed 50 | 50 120 95 Average Speed 132 | 155 132 106 Slowest Speed 200 | 160 200 120 Overloaded Moves . | . . . Propulsion Burnouts . | . . . Robots Hopped . | . . . Cave-ins Triggered . | . . . Exploration Rate (%) 35 | 4 95 7 Regions Visited 2 Branch Regions 1 Pre-discovered Areas 1 | . . 1 Known Exits Taken . | . . . Unknown Exits Taken 2 | 1 1 . Scrap Searched . | . . . Spaces Dug . | . . . Terrain Destroyed . | . . . Melee . | . . . Projectile . | . . . AOE . | . . . Terrain Rammed . | . . . Walls Destroyed . | . . . Machines Disabled . | . . . Actions | -11 -10 -10 --------- Run | Yrd Mat Min Total 1568 | 93 1304 171 Wait 258 | . 176 82 Move 1141 | 65 1018 58 Hop . | . . . Pick Up 21 | 11 9 1 Fast Attach 6 | 2 4 . Attach 15 | 4 5 6 Detach . | . . . Swap 7 | 1 6 . Drop 4 | . 4 . Fire 116 | 10 82 24 Melee . | . . . Ram . | . . . Kick . | . . . Crush . | . . . Escape Stasis . | . . . Rewire . | . . . Trap . | . . . Miscellaneous . | . . . Route ------- -11/Scrapyard -10/Materials (discovered 4 exits: [*Mat x3] / [*Min]) -10/Mines History --------- Turn | Location | Event 2 | -11/Scrapyard | Met Revision 17 30 | -11/Scrapyard | Discovered new exit (range 15) 152 | -11/Scrapyard | Entered Materials 306 | -10/Materials | Build established: Mutant 518 | -10/Materials | Discovered new exit (range 16) 816 | -10/Materials | Discovered new exit (range 11) 872 | -10/Materials | Core integrity fell below 50% 918 | -10/Materials | Discovered new exit (range 16) 1059 | -10/Materials | Discovered new exit (range 5) 1943 | -10/Materials | Entered Mines 1944 | -10/Mines | Learned location of Storage (-8) 1944 | -10/Mines | Assembled infested the area 1949 | -10/Mines | Assisted by a Guerilla fighting off Assembled 1950 | -10/Mines | Met a Derelict bent on vengeance 1983 | -10/Mines | Core integrity fell below 20% 2058 | -10/Mines | Lost 6 parts (1p2n1u2w) 2164 | -10/Mines | Destroyed by as-06556 with Assembled Blade Last Messages --------------- 01991_ as-86476 destroyed. 01994_ as-24898 destroyed. 01997_ Lgt. Assault Rifle destroyed. 02001_ Aluminum Leg destroyed. 02005_ Seismic Detector destroyed. 02014_ as-44394 destroyed. 02014_ Switching to secondary target: as-96505. 02026_ Destroyed Asb. Hover Unit. 02026_ as-96505 suffers critical hit (Burn). 02027_ Med. Laser destroyed. 02033_ as-96505 destroyed. 02036_ Acquired 22 matter. 02037_ Acquired 11 matter. 02038_ Acquired 12 matter. 02056_ as-44071 destroyed. 02069_ Acquired Flexi-carbon Leg. 02161_ as-06556 suffers critical hit (Burn). 02163_ Med. Laser destroyed. 02164_ Wheel destroyed. 02164_ Lgt. Ion Engine destroyed. Map ----- +----------------------------------------------------+ | ?????????????????????????????????????????????????? | | ?????????????????????????????????????????????????? | | ?????????????????????????????????????????????????? | | ?????????????????????????????????????????????????? | | ?????????????????????????????????????????????????? | | ?????????????????????????????????????????????????? | | ?????????????????????????????????????????????????? | | ?????????????????????????????????????????????????? | | ?????????????????????????????????????????????????? | | ?????????????????????????????????????????????????? | | ?????????????????????????? ??????????????????????? | | ?????????????????????????? ??????????????????????? | | ?????????????????????????? #?????????????????????? | | ?????????????????????????# ###??????????????????? | | ????????????????????????? ##?????????????????? | | ?????????????????????????%= #?????????????????? | | ?????????????????????????? ##????????????????? | | ?????????????????????????? ##???????????????? | | ?????????????????????????? ????????????????? | | ?????????????????????????? % ?????????????????? | | ?????????????????????????? ??????????????????? | | ??????????????????????????" ???????????????????? | | ??????????????????????????# #???????????????????? | | ??????????????????????????# #???????????????????? | | ????????????????????????### #???????????????????? | | ????????????????????????#@a #???????????????????? | | ????????????????????????# a #???????????????????? | | ????????????????????????# ###???????????????????? | | ????????????????????????# #?????????????????????? | | ????????????????????????# #?????????????????????? | | ????????????????????????# %#?????????????????????? | | ????????????????????????# #?????????????????????? | | ????????????????#####???# #?????????????????????? | | ????????????????# ##??# #?????????????????????? | | ????????????????# ##?# #?????????????????????? | | ????????????????# #?# #?????????????????????? | | ????????????????## %#?# #?????????????????????? | | ?????????????????## %### #?????????????????????? | | ?????????????????## %% % #?????????????????????? | | ?????????????????# #######?????????????????????? | | ????????????????# ##???????????????????????????? | | ????????????????#####????????????????????????????? | | ?????????????????????????????????????????????????? | | ?????????????????????????????????????????????????? | | ?????????????????????????????????????????????????? | | ?????????????????????????????????????????????????? | | ?????????????????????????????????????????????????? | | ?????????????????????????????????????????????????? | | ?????????????????????????????????????????????????? | | ?????????????????????????????????????????????????? | +----------------------------------------------------+ Best States ------------- Heat Dissipation 25 Energy Generation 10 Energy Capacity 250 Matter Stores 300 Matter Capacity 300 Sight Range 16 Terrain Scan Density 10 Evasion (%) 55 Recoil Reduction 2 Item Schematics ----------------- None Robot Schematics ------------------ None Fabricated ------------ Nothing Alien Tech Used ----------------- None Achievements -------------- None Challenges ------------ None Game ------ Seed SigixHybridBattery Manual? 0 Play Time 00:17:55 Cumulative 54.8 hours Start 2024.11.27 @ 13:59:06 End 2024.11.27 @ 14:15:03 Sessions 1 Manual Loads 0 Difficulty Rogue Special Mode None Game No. 62 Rogue 62 Adventurer 0 Explorer 0 Win Type - Total 0 Types 0/0/0/0/0/0/0/0/0 Lore% 10 Gallery% 28 Achievement% 28 Wizard Run 0 Options --------- Layout 2 ASCII 0 Keyboard 0 Movement Mouse Keybinds 0 Fullscreen 2 Font 16/SmallcapsGlow Map View 55x47 Zoom Use 2% Tactical HUD 1 Map Filters NONE Filters NONE Steam 1 RUN: 2dd98e4c-e1e8-4cef-8ce3-ce115400e747